Workbook

Sheet Animal Aid Turnover
A1: Turnover of Animal Aid (1984-2009) (adjusted for inflation, 2009)
B3: Turnover (£,'000) | C3: Turnover adjusted for inflation (£,'000)
A4: 1984 | B4: 105 | C4: =B4*'Inflation Rates'!C43 -> 251.5378083
A5: =A4+1 -> 1985 | B5: 139 | C5: =B5*'Inflation Rates'!C44 -> 313.8732644
A6: 1986 | B6: 153 | C6: =B6*'Inflation Rates'!C45 -> 334.1261112
A7: 1987 | B7: 165 | C7: =B7*'Inflation Rates'!C46 -> 345.9409377
A8: 1988 | B8: 218 | C8: =B8*'Inflation Rates'!C47 -> 435.6699648
A9: 1989 | B9: 279 | C9: =B9*'Inflation Rates'!C48 -> 517.4254041
A10: 1990 | B10: 296 | C10: =B10*'Inflation Rates'!C49 -> 501.5102475
A11: 1991 | B11: 330 | C11: =B11*'Inflation Rates'!C50 -> 528.1157593
A12: 1992 | B12: 341 | C12: =B12*'Inflation Rates'!C51 -> 525.9948124
A13: 1993 | B13: 369 | C13: =B13*'Inflation Rates'!C52 -> 560.2766043
A14: 1994 | B14: 273 | C14: =B14*'Inflation Rates'!C53 -> 404.7193764
A15: 1995 | B15: 308 | C15: =B15*'Inflation Rates'!C54 -> 441.2935884
A16: 1996 | B16: 336 | C16: =B16*'Inflation Rates'!C55 -> 470.0822062
A17: 1997 | B17: 419 | C17: =B17*'Inflation Rates'!C56 -> 568.3572848
A18: 1998 | B18: 478 | C18: =B18*'Inflation Rates'!C57 -> 626.8863014
A19: 1999 | B19: 495 | C19: =B19*'Inflation Rates'!C58 -> 639.398622
A20: 2000 | B20: 551 | C20: =B20*'Inflation Rates'!C59 -> 691.2729484
A21: 2001 | B21: 578 | C21: =B21*'Inflation Rates'!C60 -> 712.6047341
A22: 2002 | B22: 713 | C22: =B22*'Inflation Rates'!C61 -> 864.6046583
A23: 2003 | B23: 863 | C23: =B23*'Inflation Rates'!C62 -> 1017.10472
A24: 2004 | B24: 925 | C24: =B24*'Inflation Rates'!C63 -> 1058.628835
A25: 2005 | B25: 915 | C25: =B25*'Inflation Rates'!C64 -> 1018.26546
A26: 2006 | B26: 1018 | C26: =B26*'Inflation Rates'!C65 -> 1098.080719
A27: 2007 | B27: 889 | C27: =B27*'Inflation Rates'!C66 -> 919.4869748
A28: 2008 | B28: 1144 | C28: =B28*'Inflation Rates'!C67 -> 1138.0512
A29: 2009 | B29: 1144 | C29: =B29*'Inflation Rates'!C68 -> 1144
A31: Source: Annual reports and accounts

Sheet Inflation Rates
A1: Inflation in the UK since 1945.
A3: Year | B3: Annual Inflation Rate | C3: Cumulated Inflation Rate
A4: 1945 | B4: 2.06 | C4: =C5*(1+(B5/100)) -> 31.99083298
A5: 1946 | B5: 4.04 | C5: 30.74858994
A6: 1947 | B6: 5.86 | C6: 29.04646698
A7: 1948 | B7: 7.37 | C7: 27.05268415
A8: 1949 | B8: 2.79 | C8: 26.31840077
A9: 1950 | B9: 3.07 | C9: 25.53449187
A10: 1951 | B10: 9.11 | C10: 23.40252211
A11: 1952 | B11: 9.19 | C11: 21.43284377
A12: 1953 | B12: 3.12 | C12: 20.78437138
A13: 1954 | B13: 1.8 | C13: 20.41686776
A14: 1955 | B14: 4.55 | C14: 19.5283288
A15: 1956 | B15: 4.9 | C15: 18.61613804
A16: 1957 | B16: 3.73 | C16: 17.94672519
A17: 1958 | B17: 3.02 | C17: 17.42062239
A18: 1959 | B18: 0.55 | C18: 17.32533306
A19: 1960 | B19: 1 | C19: 17.15379511
A20: 1961 | B20: 3.43 | C20: 16.58493194
A21: 1962 | B21: 4.26 | C21: 15.90728174
A22: 1963 | B22: 1.97 | C22: 15.59996248
A23: 1964 | B23: 3.28 | C23: 15.10453377
A24: 1965 | B24: 4.77 | C24: 14.41685002
A25: 1966 | B25: 3.93 | C25: 13.87169251
A26: 1967 | B26: 2.49 | C26: 13.534679
A27: 1968 | B27: 4.69 | C27: 12.92833986
A28: 1969 | B28: 5.44 | C28: 12.26132385
A29: 1970 | B29: 6.37 | C29: 11.52705071
A30: 1971 | B30: 9.4 | C30: 10.53660943
A31: 1972 | B31: 7.13 | C31: 9.835349042
A32: 1973 | B32: 9.22 | C32: 9.005080609
A33: 1974 | B33: 16.02 | C33: 7.761662308
A34: 1975 | B34: 24.18 | C34: 6.250332024
A35: 1976 | B35: 16.5 | C35: 5.365091866
A36: 1977 | B36: 15.88 | C36: 4.629868714
A37: 1978 | B37: 8.3 | C37: 4.275040364
A38: 1979 | B38: 13.41 | C38: 3.769544453
A39: 1980 | B39: 17.97 | C39: 3.195341573
A40: 1981 | B40: 11.86 | C40: 2.85655424
A41: 1982 | B41: 8.59 | C41: 2.630586831
A42: 1983 | B42: 4.63 | C42: 2.514180284
A43: 1984 | B43: 4.95 | C43: 2.395598174
A44: 1985 | B44: 6.09 | C44: 2.258081039
A45: 1986 | B45: 3.4 | C45: 2.183830792
A46: 1987 | B46: 4.16 | C46: 2.096611743
A47: 1988 | B47: 4.91 | C47: 1.998486077
A48: 1989 | B48: 7.76 | C48: 1.854571341
A49: 1990 | B49: 9.46 | C49: 1.694291377
A50: 1991 | B50: 5.87 | C50: 1.600350786
A51: 1992 | B51: 3.75 | C51: 1.542506781
A52: 1993 | B52: 1.59 | C52: 1.518364781
A53: 1994 | B53: 2.42 | C53: 1.482488558
A54: 1995 | B54: 3.47 | C54: 1.432771391
A55: 1996 | B55: 2.41 | C55: 1.399054185
A56: 1997 | B56: 3.14 | C56: 1.3564613
A57: 1998 | B57: 3.43 | C57: 1.311477618
A58: 1999 | B58: 1.53 | C58: 1.291714388
A59: 2000 | B59: 2.96 | C59: 1.254578854
A60: 2001 | B60: 1.76 | C60: 1.232880163
A61: 2002 | B61: 1.67 | C61: 1.212629254
A62: 2003 | B62: 2.89 | C62: 1.178568621
A63: 2004 | B63: 2.98 | C63: 1.144463606
A64: 2005 | B64: 2.84 | C64: 1.112858426
A65: 2006 | B65: 3.17 | C65: 1.078664754
A66: 2007 | B66: 4.29 | C66: 1.03429356
A67: 2008 | B67: 3.97 | C67: 0.9948
A68: 2009 | B68: -0.52 | C68: 1
A71: Source: Lawrence H. Officer and Samuel H. Williamson "Annual Inflation Rates in the United States, 1775 - 2007, and United Kingdom, 1265 - 2007," MeasuringWorth, 2008. http://www.measuringworth.com/calculators/inflation/res
